[Event "13th Arad Open 2020"]
[Site "Arad"]
[Date "2020.09.29"]
[Round "6.7"]
[White "Ursan, Petru-Sebastian"]
[Black "Craciun, Alexandru-Emilian"]
[Result "1-0"]
[ECO "A20"]
[WhiteElo "2248"]
[BlackElo "2090"]
[Annotator "ChessBase"]
[PlyCount "111"]
[EventDate "2020.09.25"]
[EventType "swiss"]
[EventCountry "ROU"]
[SourceTitle "playchess.com"]
[Source "ChessBase"]
[SourceQuality "1"]
[TimeControl "5400+30"]

1. c4 {[%emt 0:00:00]} e5 {[%emt 0:00:00]} 2. g3 {[%emt 0:00:00]} Nf6 {[%emt 0:00:00]} 3. Bg2 {[%emt 0:02:46]} d5 {[%emt 0:00:00]} 4. cxd5 {[%emt 0:05:48]} Nxd5 {[%emt 0:00:08]} 5. Nf3 {[%emt 0:01:39]} Nc6 {[%emt 0:00:09]} 6. Nc3 {[%emt 0:00:49]} Nb6 {[%emt 0:00:44]} 7. O-O {[%emt 0:00:37]} Be6 {[%emt 0:00:31]} 8. d3 {[%emt 0:00:30]} Be7 {[%emt 0:00:13]} 9. Be3 {[%emt 0:00:30]} O-O {[%emt 0:00:39]} 10. Rc1 {[%emt 0:04:17]} f5 {[%emt 0:01:09]} 11. Na4 {[%emt 0:00:27]} Nxa4 {[%emt 0:45:24]} 12. Qxa4 {[%emt 0:00:12]} Bd5 {[%emt 0:01:54]} 13. Bc5 {[%emt 0:17:47]} a6 {[%emt 0:07:08]} 14. Qc2 {[%emt 0:12:43]} Kh8 {[%emt 0:04:02]} 15. a4 {[%emt 0:02:24]} Rc8 {[%emt 0:01:35]} 16. Bxe7 {[%emt 0:02:44]} Qxe7 {[%emt 0:00:10]} 17. Qc5 {[%emt 0:00:07]} Qd6 {[%emt 0:09:17]} 18. Rfd1 {[%emt 0:05:19]} Bb3 {[%emt 0:02:52]} 19. Rd2 {[%emt 0:06:43]} Bxa4 {[%emt 0:00:25]} 20. Ng5 {[%emt 0:02:27]} h6 {[%emt 0:01:08]} 21. Qc4 {[%emt 0:02:13]} hxg5 {[%emt 0:10:17]} 22. Qxa4 {[%emt 0:00:06]} Nd8 {[%emt 0:00:21]} 23. g4 {[%emt 0:03:49]} f4 {[%emt 0:03:56]} 24. d4 {[%emt 0:01:02]} c6 {[%emt 0:02:40]} 25. Rd3 {[%emt 0:01:21]} f3 {[%emt 0:02:50]} 26. Bxf3 {[%emt 0:01:32]} Ne6 {[%emt 0:00:25]} 27. dxe5 {[%emt 0:05:06]} Qxe5 {[%emt 0:00:04]} 28. Qb4 {[%emt 0:01:16]} b5 {[%emt 0:02:24]} 29. Re3 {[%emt 0:02:00]} Qf6 {[%emt 0:00:28]} 30. Rd1 {[%emt 0:05:41]} Rcd8 {[%emt 0:01:40]} 31. Rf1 {[%emt 0:08:34]} Rd4 {[%emt 0:00:11]} 32. Qc3 {[%emt 0:00:45]} c5 {[%emt 0:00:57]} 33. Rxe6 {[%emt 0:00:43]} Qxe6 {[%emt 0:00:11]} 34. Qxc5 {[%emt 0:00:05]} Rfd8 {[%emt 0:01:08]} 35. Qxg5 {[%emt 0:00:17]} Qf6 {[%emt 0:01:44]} 36. Qh5+ {[%emt 0:00:27]} Kg8 {[%emt 0:00:03]} 37. Kg2 {[%emt 0:00:51]} Rd2 {[%emt 0:00:57]} 38. b3 {[%emt 0:00:54]} g6 {[%emt 0:00:24]} 39. Qc5 {[%emt 0:00:37]} Qd6 {[%emt 0:00:29]} 40. Qg5 {[%emt 0:00:35]} Kg7 {[%emt 0:00:29]} 41. Rc1 {[%emt 0:01:25]} Qf6 {[%emt 0:00:43]} 42. Qe3 {[%emt 0:01:32]} R2d6 {[%emt 0:00:27]} 43. Rc7+ {[%emt 0:00:28]} R8d7 {[%emt 0:00:10]} 44. Qc5 {[%emt 0:01:05]} Qd4 {[%emt 0:00:31]} 45. Rxd7+ {[%emt 0:00:26]} Rxd7 {[%emt 0:00:05]} 46. Qc8 {[%emt 0:00:24]} Qd6 {[%emt 0:00:16]} 47. h4 {[%emt 0:00:22]} a5 {[%emt 0:00:16]} 48. Qc3+ {[%emt 0:00:17]} Qf6 {[%emt 0:00:59]} 49. Qxa5 {[%emt 0:00:11]} Qxh4 {[%emt 0:00:11]} 50. e3 {[%emt 0:01:11]} Qg5 {[%emt 0:00:47]} 51. Qc3+ {[%emt 0:00:14]} Kh7 {[%emt 0:00:34]} 52. Qc6 {[%emt 0:01:10]} Rd2 {[%emt 0:00:53]} 53. Qc3 {[%emt 0:00:32]} Qd8 {[%emt 0:00:40]} 54. Be4 {[%emt 0:00:53]} Qd6 {[%emt 0:00:33]} 55. Qc8 {[%emt 0:00:50]} Qe5 56. Qc6 1-0

[Event "13th Arad Open 2020"]
[Site "Arad"]
[Date "2020.09.29"]
[Round "6.8"]
[White "Dobrin, Ionut-Alexandru"]
[Black "Patrascu, Catalin-Lucian"]
[Result "1/2-1/2"]
[ECO "D24"]
[WhiteElo "2040"]
[BlackElo "2320"]
[Annotator "ChessBase"]
[PlyCount "62"]
[EventDate "2020.09.25"]
[EventType "swiss"]
[EventCountry "ROU"]
[SourceTitle "playchess.com"]
[Source "ChessBase"]
[SourceQuality "1"]
[TimeControl "5400+30"]

1. d4 {[%emt 0:00:00]} d5 {[%emt 0:00:00]} 2. c4 dxc4 {[%emt 0:00:00]} 3. Nf3 {[%emt 0:00:11]} Nf6 {[%emt 0:00:00]} 4. Nc3 {[%emt 0:01:03]} a6 {[%emt 0:09:03]} 5. a4 {[%emt 0:00:11]} e6 {[%emt 0:04:34]} 6. e3 {[%emt 0:00:27]} b6 {[%emt 0:00:50]} 7. Bxc4 {[%emt 0:05:37]} Bb7 {[%emt 0:00:28]} 8. O-O {[%emt 0:00:16]} Bb4 {[%emt 0:00:10]} 9. Na2 {[%emt 0:07:38]} Bd6 {[%emt 0:00:43]} 10. Bd2 {[%emt 0:01:47]} Nbd7 {[%emt 0:05:35]} 11. h3 {[%emt 0:06:12]} Qe7 {[%emt 0:05:41]} 12. Nc1 {[%emt 0:01:33]} e5 {[%emt 0:08:34]} 13. dxe5 {[%emt 0:21:10]} Nxe5 {[%emt 0:00:09]} 14. Nxe5 {[%emt 0:02:54]} Qxe5 {[%emt 0:00:52]} 15. f4 {[%emt 0:00:17]} Qe7 {[%emt 0:01:39]} 16. Nb3 {[%emt 0:00:53]} O-O {[%emt 0:20:39]} 17. Nd4 {[%emt 0:09:45]} Rad8 {[%emt 0:05:33]} 18. Qe2 {[%emt 0:03:26]} Ne4 {[%emt 0:02:47]} 19. Be1 {[%emt 0:02:55]} a5 {[%emt 0:06:58]} 20. Qg4 {[%emt 0:11:07]} Nf6 {[%emt 0:02:19]} 21. Qg3 {[%emt 0:01:30]} Qe4 {[%emt 0:04:14]} 22. Rd1 {[%emt 0:01:54]} Rfe8 {[%emt 0:03:22]} 23. Bf2 {[%emt 0:03:22]} c5 {[%emt 0:03:13]} 24. Bd3 {[%emt 0:03:28]} Qxg2+ {[%emt 0:02:36]} 25. Qxg2 {[%emt 0:00:01]} Bxg2 {[%emt 0:00:08]} 26. Kxg2 {[%emt 0:01:42]} cxd4 {[%emt 0:00:04]} 27. exd4 {[%emt 0:01:42]} Bxf4 {[%emt 0:03:28]} 28. Bh4 {[%emt 0:00:42]} Be3 {[%emt 0:02:08]} 29. Bxf6 {[%emt 0:01:04]} gxf6 {[%emt 0:00:03]} 30. Bb5 {[%emt 0:04:10]} Re6 {[%emt 0:04:40]} 31. d5 {[%emt 0:00:34]} Red6 {[%emt 0:01:10]} 1/2-1/2

[Event "13th Arad Open 2020"]
[Site "Arad"]
[Date "2020.09.29"]
[Round "6.9"]
[White "Lehaci, Miruna-Daria"]
[Black "Saioc, David"]
[Result "1-0"]
[ECO "C42"]
[WhiteElo "2223"]
[BlackElo "1898"]
[Annotator "ChessBase"]
[PlyCount "127"]
[EventDate "2020.09.25"]
[EventType "swiss"]
[EventCountry "ROU"]
[SourceTitle "playchess.com"]
[Source "ChessBase"]
[SourceQuality "1"]
[TimeControl "5400+30"]

1. e4 {[%emt 0:00:00]} e5 {[%emt 0:00:00]} 2. Nf3 {[%emt 0:00:00]} Nf6 {[%emt 0:00:01]} 3. Nxe5 {[%emt 0:00:08]} d6 {[%emt 0:00:09]} 4. Nf3 {[%emt 0:00:37]} Nxe4 {[%emt 0:00:11]} 5. d4 {[%emt 0:03:23]} d5 {[%emt 0:00:08]} 6. Bd3 {[%emt 0:00:06]} Bd6 {[%emt 0:00:07]} 7. O-O {[%emt 0:00:33]} O-O {[%emt 0:00:07]} 8. c4 {[%emt 0:00:17]} c6 {[%emt 0:00:08]} 9. Nc3 {[%emt 0:03:28]} Nxc3 {[%emt 0:00:08]} 10. bxc3 {[%emt 0:00:05]} dxc4 {[%emt 0:00:04]} 11. Bxc4 {[%emt 0:00:07]} Bg4 {[%emt 0:00:04]} 12. Be2 {[%emt 0:02:39]} Re8 {[%emt 0:04:03]} 13. Re1 {[%emt 0:02:13]} Nd7 {[%emt 0:07:24]} 14. a3 {[%emt 0:00:56]} c5 {[%emt 0:11:17]} 15. Bb2 {[%emt 0:09:13]} Qc7 {[%emt 0:11:41]} 16. h3 {[%emt 0:01:22]} Bh5 {[%emt 0:00:07]} 17. Qd3 {[%emt 0:19:42]} Rad8 {[%emt 0:13:18]} 18. Bf1 {[%emt 0:05:24]} Be7 {[%emt 0:10:55]} 19. c4 {[%emt 0:06:04]} Bf6 {[%emt 0:04:54]} 20. Rxe8+ {[%emt 0:07:12]} Rxe8 {[%emt 0:00:09]} 21. Rd1 {[%emt 0:04:08]} Rd8 {[%emt 0:04:09]} 22. g4 {[%emt 0:07:45]} Bg6 {[%emt 0:00:09]} 23. Qe3 {[%emt 0:00:06]} h6 {[%emt 0:07:13]} 24. Re1 {[%emt 0:03:58]} Nf8 {[%emt 0:06:12]} 25. Ba1 {[%emt 0:03:37]} cxd4 {[%emt 0:02:02]} 26. Bxd4 {[%emt 0:00:17]} Bxd4 {[%emt 0:00:10]} 27. Nxd4 {[%emt 0:00:06]} a6 {[%emt 0:04:17]} 28. Nf3 {[%emt 0:03:44]} Ne6 {[%emt 0:01:03]} 29. Ne5 {[%emt 0:00:28]} Nf8 {[%emt 0:01:17]} 30. Nxg6 {[%emt 0:04:22]} Nxg6 {[%emt 0:00:08]} 31. c5 {[%emt 0:01:14]} Nf8 {[%emt 0:02:26]} 32. Bc4 {[%emt 0:01:36]} Ng6 {[%emt 0:05:30]} 33. Ba2 {[%emt 0:04:07]} Rc8 {[%emt 0:02:37]} 34. Qf3 {[%emt 0:04:32]} Ne5 {[%emt 0:01:00]} 35. Qf5 {[%emt 0:00:48]} Re8 {[%emt 0:00:48]} 36. Bxf7+ {[%emt 0:00:53]} Qxf7 {[%emt 0:00:58]} 37. Rxe5 {[%emt 0:00:04]} Rxe5 {[%emt 0:00:15]} 38. Qxe5 {[%emt 0:00:04]} Qf3 {[%emt 0:01:03]} 39. Qe3 {[%emt 0:02:09]} Qd1+ {[%emt 0:00:05]} 40. Kh2 {[%emt 0:00:05]} Qd5 {[%emt 0:00:11]} 41. h4 {[%emt 0:00:46]} Qc6 {[%emt 0:00:39]} 42. g5 {[%emt 0:00:52]} h5 {[%emt 0:02:11]} 43. Qe5 {[%emt 0:00:42]} g6 {[%emt 0:00:58]} 44. Qb8+ {[%emt 0:00:48]} Kg7 {[%emt 0:00:13]} 45. Qe5+ {[%emt 0:00:30]} Kg8 {[%emt 0:00:22]} 46. Kg3 {[%emt 0:00:27]} Kh7 {[%emt 0:01:22]} 47. f3 {[%emt 0:00:48]} Kg8 {[%emt 0:00:16]} 48. Qd4 {[%emt 0:00:46]} Qc7+ {[%emt 0:00:41]} 49. Kg2 {[%emt 0:00:05]} Qc6 {[%emt 0:00:12]} 50. a4 {[%emt 0:00:13]} Kh7 {[%emt 0:01:03]} 51. a5 {[%emt 0:00:06]} Kg8 {[%emt 0:00:03]} 52. Qe5 {[%emt 0:00:23]} Kf7 {[%emt 0:00:37]} 53. Kg3 {[%emt 0:00:47]} Qe6 {[%emt 0:00:45]} 54. Qxe6+ {[%emt 0:00:48]} Kxe6 {[%emt 0:00:06]} 55. f4 {[%emt 0:00:12]} Kd5 {[%emt 0:00:41]} 56. f5 {[%emt 0:00:48]} gxf5 {[%emt 0:00:35]} 57. Kf4 {[%emt 0:00:21]} Ke6 {[%emt 0:00:08]} 58. g6 {[%emt 0:00:03]} Kf6 {[%emt 0:00:03]} 59. g7 {[%emt 0:00:05]} Kxg7 {[%emt 0:00:09]} 60. Kxf5 {[%emt 0:00:04]} Kf7 {[%emt 0:00:53]} 61. Kg5 {[%emt 0:00:04]} Ke6 {[%emt 0:00:16]} 62. Kxh5 {[%emt 0:00:35]} Kf5 {[%emt 0:00:17]} 63. Kh6 {[%emt 0:00:16]} Kf6 {[%emt 0:00:06]} 64. h5 {[%emt 0:00:23]} 1-0

[Event "13th Arad Open 2020"]
[Site "Arad"]
[Date "2020.09.29"]
[Round "6.10"]
[White "Breitkopf, Francisc"]
[Black "Andronescu, Madalin"]
[Result "1/2-1/2"]
[ECO "B50"]
[WhiteElo "1984"]
[BlackElo "2165"]
[Annotator "ChessBase"]
[PlyCount "78"]
[EventDate "2020.09.25"]
[EventType "swiss"]
[EventCountry "ROU"]
[SourceTitle "playchess.com"]
[Source "ChessBase"]
[SourceQuality "1"]
[TimeControl "5400+30"]

1. e4 {[%emt 0:00:00]} c5 {[%emt 0:00:00]} 2. Nf3 {[%emt 0:00:00]} d6 {[%emt 0:00:00]} 3. Bc4 {[%emt 0:00:00]} Nc6 {[%emt 0:00:10]} 4. O-O {[%emt 0:00:34]} Nf6 {[%emt 0:00:07]} 5. d3 {[%emt 0:03:48]} e6 {[%emt 0:00:57]} 6. Bb3 {[%emt 0:02:55]} Be7 {[%emt 0:00:14]} 7. c3 {[%emt 0:01:30]} O-O {[%emt 0:01:12]} 8. Re1 {[%emt 0:07:20]} e5 {[%emt 0:12:25]} 9. h3 {[%emt 0:01:45]} h6 {[%emt 0:09:10]} 10. Nbd2 {[%emt 0:00:12]} Re8 {[%emt 0:03:42]} 11. Nf1 {[%emt 0:00:24]} Bf8 {[%emt 0:00:07]} 12. Ng3 {[%emt 0:03:37]} d5 {[%emt 0:04:05]} 13. exd5 {[%emt 0:00:36]} Nxd5 {[%emt 0:00:06]} 14. d4 {[%emt 0:00:28]} cxd4 {[%emt 0:06:23]} 15. cxd4 {[%emt 0:01:52]} Ndb4 {[%emt 0:08:38]} 16. a3 {[%emt 0:03:15]} Na6 {[%emt 0:00:19]} 17. dxe5 {[%emt 0:06:58]} Nc5 {[%emt 0:03:58]} 18. Qxd8 {[%emt 0:04:38]} Rxd8 {[%emt 0:00:07]} 19. Bc2 {[%emt 0:00:16]} Nd3 {[%emt 0:00:34]} 20. Re3 {[%emt 0:02:20]} Nxc1 {[%emt 0:02:31]} 21. Rxc1 {[%emt 0:00:02]} Be6 {[%emt 0:04:19]} 22. Be4 {[%emt 0:01:34]} Na5 {[%emt 0:06:22]} 23. b4 {[%emt 0:02:13]} Nb3 {[%emt 0:00:20]} 24. Rcc3 {[%emt 0:03:33]} Rd1+ {[%emt 0:00:06]} 25. Kh2 {[%emt 0:01:24]} Nd2 {[%emt 0:00:18]} 26. Bxb7 {[%emt 0:00:54]} Rd8 {[%emt 0:01:27]} 27. Nxd2 {[%emt 0:01:07]} R8xd2 {[%emt 0:02:00]} 28. f4 {[%emt 0:02:34]} g6 {[%emt 0:02:23]} 29. Ne4 {[%emt 0:00:56]} Rd4 {[%emt 0:00:18]} 30. Nf6+ {[%emt 0:07:42]} Kg7 {[%emt 0:00:04]} 31. Bf3 {[%emt 0:00:39]} Ra1 {[%emt 0:02:51]} 32. Red3 {[%emt 0:00:49]} Rxf4 {[%emt 0:00:50]} 33. Ne8+ {[%emt 0:09:44]} Kg8 {[%emt 0:00:20]} 34. Nf6+ {[%emt 0:00:28]} Kg7 {[%emt 0:00:04]} 35. g4 {[%emt 0:01:32]} Re1 {[%emt 0:05:30]} 36. Re3 {[%emt 0:01:32]} Rxe3 {[%emt 0:02:40]} 37. Rxe3 {[%emt 0:00:02]} Rd4 {[%emt 0:00:16]} 38. Ne8+ {[%emt 0:06:13]} Kg8 {[%emt 0:00:08]} 39. Nf6+ {[%emt 0:01:00]} Kg7 {[%emt 0:00:05]} 1/2-1/2

[Event "13th Arad Open 2020"]
[Site "Arad"]
[Date "2020.09.29"]
[Round "7.1"]
[White "Kozak, Adam"]
[Black "Istratescu, Andrei"]
[Result "1/2-1/2"]
[ECO "A04"]
[WhiteElo "2503"]
[BlackElo "2551"]
[Annotator "ChessBase"]
[PlyCount "55"]
[EventDate "2020.09.25"]
[EventType "swiss"]
[EventCountry "ROU"]
[SourceTitle "playchess.com"]
[Source "ChessBase"]
[SourceQuality "1"]
[TimeControl "5400+30"]

1. Nf3 {[%emt 0:00:44]} c5 {[%emt 0:00:46]} 2. c4 {[%emt 0:00:15]} Nf6 {[%emt 0:00:20]} 3. g3 {[%emt 0:00:25]} b6 {[%emt 0:02:06]} 4. Bg2 {[%emt 0:01:02]} Bb7 {[%emt 0:00:44]} 5. O-O {[%emt 0:00:38]} g6 {[%emt 0:02:41]} 6. b3 {[%emt 0:05:10]} Bg7 {[%emt 0:00:41]} 7. Bb2 {[%emt 0:00:07]} O-O {[%emt 0:01:08]} 8. Nc3 {[%emt 0:00:15]} Ne4 {[%emt 0:08:23]} 9. Qc2 {[%emt 0:05:14]} Nxc3 {[%emt 0:02:05]} 10. Bxc3 {[%emt 0:00:09]} Bxc3 {[%emt 0:03:51]} 11. Qxc3 {[%emt 0:01:13]} Nc6 {[%emt 0:07:35]} 12. Rfd1 {[%emt 0:02:55]} d6 {[%emt 0:04:14]} 13. d4 {[%emt 0:08:23]} Nxd4 {[%emt 0:02:23]} 14. Nxd4 {[%emt 0:00:09]} cxd4 {[%emt 0:00:08]} 15. Rxd4 {[%emt 0:00:15]} Bxg2 {[%emt 0:00:03]} 16. Kxg2 {[%emt 0:00:06]} Rc8 {[%emt 0:01:12]} 17. Qf3 {[%emt 0:03:33]} Qd7 {[%emt 0:01:45]} 18. a4 {[%emt 0:00:53]} a5 {[%emt 0:03:09]} 19. Rad1 {[%emt 0:01:46]} Rc5 {[%emt 0:03:18]} 20. Rd5 {[%emt 0:00:46]} Rxd5 {[%emt 0:04:30]} 21. Rxd5 {[%emt 0:01:05]} Rc8 {[%emt 0:00:48]} 22. h4 {[%emt 0:03:53]} Rc5 {[%emt 0:05:32]} 23. Rxc5 {[%emt 0:01:23]} dxc5 {[%emt 0:00:03]} 24. Qd5 {[%emt 0:00:27]} Qc7 {[%emt 0:01:47]} 25. e3 {[%emt 0:06:08]} h5 {[%emt 0:03:14]} 26. Kf1 {[%emt 0:00:59]} e6 {[%emt 0:00:55]} 27. Qa8+ {[%emt 0:00:22]} Kg7 {[%emt 0:00:08]} 28. Qe4 {[%emt 0:00:20]} 1/2-1/2

[Event "13th Arad Open 2020"]
[Site "Arad"]
[Date "2020.09.29"]
[Round "7.2"]
[White "Manolache, Marius"]
[Black "Filip, Lucian-Ioan"]
[Result "1/2-1/2"]
[ECO "E00"]
[WhiteElo "2541"]
[BlackElo "2432"]
[Annotator "ChessBase"]
[PlyCount "28"]
[EventDate "2020.09.25"]
[EventType "swiss"]
[EventCountry "ROU"]
[SourceTitle "playchess.com"]
[Source "ChessBase"]
[SourceQuality "1"]
[TimeControl "5400+30"]

1. d4 {[%emt 0:00:00]} e6 {[%emt 0:00:00]} 2. c4 {[%emt 0:00:00]} Bb4+ {[%emt 0:00:00]} 3. Bd2 {[%emt 0:00:20]} Bxd2+ {[%emt 0:00:00]} 4. Qxd2 {[%emt 0:00:09]} Nf6 {[%emt 0:00:00]} 5. Nc3 {[%emt 0:01:04]} d5 {[%emt 0:00:00]} 6. Nf3 {[%emt 0:00:57]} O-O {[%emt 0:00:00]} 7. e3 {[%emt 0:00:53]} Qe7 {[%emt 0:00:06]} 8. Rc1 {[%emt 0:02:32]} dxc4 {[%emt 0:12:24]} 9. Bxc4 {[%emt 0:00:12]} c5 {[%emt 0:00:08]} 10. O-O {[%emt 0:08:11]} Rd8 {[%emt 0:00:07]} 11. Rfd1 {[%emt 0:09:33]} cxd4 {[%emt 0:02:08]} 12. Nxd4 {[%emt 0:01:31]} Bd7 {[%emt 0:00:09]} 13. Ndb5 {[%emt 0:12:19]} Nc6 {[%emt 0:00:36]} 14. Qd6 {[%emt 0:00:20]} a6 {[%emt 0:03:09]} 1/2-1/2

[Event "13th Arad Open 2020"]
[Site "Arad"]
[Date "2020.09.29"]
[Round "7.3"]
[White "Solodovnichenko, Yuri"]
[Black "Pisu, Robert-Daniel"]
[Result "1-0"]
[ECO "C65"]
[WhiteElo "2553"]
[BlackElo "2223"]
[Annotator "ChessBase"]
[PlyCount "73"]
[EventDate "2020.09.25"]
[EventType "swiss"]
[EventCountry "ROU"]
[SourceTitle "playchess.com"]
[Source "ChessBase"]
[SourceQuality "1"]
[TimeControl "5400+30"]

1. e4 {[%emt 0:00:00]} e5 {[%emt 0:00:00]} 2. Nf3 {[%emt 0:00:00]} Nc6 {[%emt 0:00:00]} 3. Bb5 {[%emt 0:00:44]} Nf6 {[%emt 0:00:00]} 4. d3 {[%emt 0:00:18]} Bc5 {[%emt 0:00:15]} 5. Bxc6 {[%emt 0:00:10]} dxc6 {[%emt 0:00:04]} 6. h3 {[%emt 0:00:06]} O-O {[%emt 0:05:32]} 7. Be3 {[%emt 0:00:34]} Qe7 {[%emt 0:02:12]} 8. Qd2 {[%emt 0:04:32]} Rd8 {[%emt 0:15:07]} 9. Bxc5 {[%emt 0:08:03]} Qxc5 {[%emt 0:00:09]} 10. Nc3 {[%emt 0:00:41]} Nd7 {[%emt 0:12:40]} 11. d4 {[%emt 0:06:12]} exd4 {[%emt 0:08:12]} 12. Qxd4 {[%emt 0:00:12]} Qxd4 {[%emt 0:00:11]} 13. Nxd4 {[%emt 0:00:05]} Nc5 {[%emt 0:10:39]} 14. O-O-O {[%emt 0:01:53]} Ne6 {[%emt 0:06:16]} 15. Nde2 {[%emt 0:03:58]} Rxd1+ {[%emt 0:04:20]} 16. Rxd1 {[%emt 0:00:12]} Kf8 {[%emt 0:00:11]} 17. f4 {[%emt 0:01:40]} Ke7 {[%emt 0:02:38]} 18. Kd2 {[%emt 0:01:40]} Nf8 {[%emt 0:12:35]} 19. Ke3 {[%emt 0:01:44]} f6 {[%emt 0:07:41]} 20. g4 {[%emt 0:01:15]} Be6 {[%emt 0:00:35]} 21. Nd4 {[%emt 0:01:41]} Rd8 {[%emt 0:01:15]} 22. Na4 {[%emt 0:04:10]} Kf7 {[%emt 0:02:33]} 23. Rd3 {[%emt 0:02:14]} Rd6 {[%emt 0:03:08]} 24. b3 {[%emt 0:04:35]} Bc8 {[%emt 0:00:53]} 25. c4 {[%emt 0:00:29]} Ne6 {[%emt 0:00:40]} 26. Nxe6 {[%emt 0:00:57]} Rxd3+ {[%emt 0:00:29]} 27. Kxd3 {[%emt 0:00:05]} Kxe6 {[%emt 0:00:26]} 28. f5+ {[%emt 0:01:26]} Ke5 {[%emt 0:02:21]} 29. Ke3 {[%emt 0:00:05]} b6 {[%emt 0:00:47]} 30. c5 {[%emt 0:08:45]} Ba6 {[%emt 0:00:15]} 31. Nb2 {[%emt 0:03:32]} Bf1 {[%emt 0:01:13]} 32. b4 {[%emt 0:00:49]} bxc5 {[%emt 0:01:33]} 33. bxc5 {[%emt 0:00:05]} h6 {[%emt 0:00:48]} 34. h4 {[%emt 0:00:08]} a6 {[%emt 0:00:36]} 35. Nd1 {[%emt 0:00:27]} Bc4 {[%emt 0:00:42]} 36. Nf2 {[%emt 0:00:31]} Bf1 {[%emt 0:00:31]} 37. h5 {[%emt 0:00:22]} 1-0

[Event "13th Arad Open 2020"]
[Site "Arad"]
[Date "2020.09.29"]
[Round "7.4"]
[White "Antonica, Dragos-Andrei"]
[Black "Talu, Mircea"]
[Result "0-1"]
[ECO "E46"]
[WhiteElo "2301"]
[BlackElo "2351"]
[Annotator "ChessBase"]
[PlyCount "101"]
[EventDate "2020.09.25"]
[EventType "swiss"]
[EventCountry "ROU"]
[SourceTitle "playchess.com"]
[Source "ChessBase"]
[SourceQuality "1"]
[TimeControl "5400+30"]

1. d4 {[%emt 0:00:00]} Nf6 {[%emt 0:00:00]} 2. c4 {[%emt 0:00:00]} e6 {[%emt 0:00:00]} 3. Nc3 {[%emt 0:00:00]} Bb4 {[%emt 0:00:03]} 4. e3 {[%emt 0:00:00]} O-O {[%emt 0:00:38]} 5. Bd2 {[%emt 0:00:00]} b6 {[%emt 0:01:52]} 6. Nf3 {[%emt 0:00:58]} Bb7 {[%emt 0:00:27]} 7. Bd3 {[%emt 0:01:04]} d5 {[%emt 0:01:16]} 8. cxd5 {[%emt 0:04:16]} exd5 {[%emt 0:00:23]} 9. O-O {[%emt 0:00:08]} Nbd7 {[%emt 0:01:25]} 10. Rc1 {[%emt 0:00:21]} a6 {[%emt 0:02:10]} 11. Ne5 {[%emt 0:09:56]} Nxe5 {[%emt 0:12:19]} 12. dxe5 {[%emt 0:00:02]} Nd7 {[%emt 0:00:08]} 13. f4 {[%emt 0:18:21]} Nc5 {[%emt 0:00:16]} 14. Bb1 {[%emt 0:10:01]} d4 {[%emt 0:12:19]} 15. Ne2 {[%emt 0:06:39]} Qd5 {[%emt 0:07:36]} 16. Rf2 {[%emt 0:03:00]} Bxd2 {[%emt 0:20:58]} 17. Qxd2 {[%emt 0:00:01]} d3 {[%emt 0:01:11]} 18. Nc3 {[%emt 0:23:41]} Qc4 {[%emt 0:00:11]} 19. Nd1 {[%emt 0:01:57]} Qb5 {[%emt 0:05:36]} 20. b4 {[%emt 0:06:26]} Ne4 {[%emt 0:00:05]} 21. Qxd3 {[%emt 0:00:02]} Qxd3 {[%emt 0:00:11]} 22. Bxd3 {[%emt 0:00:00]} Nxf2 {[%emt 0:00:10]} 23. Nxf2 {[%emt 0:00:01]} Bd5 {[%emt 0:03:19]} 24. a3 {[%emt 0:05:01]} c5 {[%emt 0:09:54]} 25. e4 {[%emt 0:03:51]} Bb3 {[%emt 0:02:48]} 26. bxc5 {[%emt 0:02:28]} bxc5 {[%emt 0:00:19]} 27. Rxc5 {[%emt 0:02:55]} Rfc8 {[%emt 0:00:22]} 28. Rxc8+ {[%emt 0:00:02]} Rxc8 29. Kf1 Rc1+ {[%emt 0:01:15]} 30. Ke2 {[%emt 0:00:03]} a5 {[%emt 0:00:21]} 31. Kd2 {[%emt 0:00:21]} Ra1 {[%emt 0:00:07]} 32. Kc3 {[%emt 0:00:00]} Rxa3 {[%emt 0:00:15]} 33. Bb1 {[%emt 0:01:36]} Ba4+ {[%emt 0:01:17]} 34. Kb2 {[%emt 0:00:22]} Rb3+ {[%emt 0:00:36]} 35. Ka2 {[%emt 0:00:17]} Re3 {[%emt 0:00:46]} 36. Bd3 {[%emt 0:00:05]} Bc2 {[%emt 0:00:40]} 37. Bc4 {[%emt 0:00:32]} Bb3+ {[%emt 0:03:18]} 38. Bxb3 {[%emt 0:00:04]} Re2+ 39. Ka3 Rxf2 {[%emt 0:00:15]} 40. e6 {[%emt 0:00:35]} fxe6 {[%emt 0:00:20]} 41. Bxe6+ {[%emt 0:00:30]} Kf8 {[%emt 0:00:02]} 42. Bh3 {[%emt 0:03:56]} Rxf4 43. Ka4 Rxe4+ {[%emt 0:00:44]} 44. Kxa5 {[%emt 0:00:00]} Rh4 {[%emt 0:01:17]} 45. Kb5 {[%emt 0:00:15]} g5 {[%emt 0:00:34]} 46. Bf5 {[%emt 0:00:02]} Rxh2 {[%emt 0:00:08]} 47. Be4 {[%emt 0:00:22]} Rh4 {[%emt 0:00:31]} 48. Bb7 {[%emt 0:00:11]} Rd4 {[%emt 0:00:27]} 49. Kc5 {[%emt 0:00:05]} Rd2 {[%emt 0:00:05]} 50. Bd5 {[%emt 0:00:22]} Ke7 {[%emt 0:00:08]} 51. g4 0-1

[Event "13th Arad Open 2020"]
[Site "Arad"]
[Date "2020.09.29"]
[Round "7.5"]
[White "Ghimpu, Samuel-Timotei"]
[Black "Ursan, Petru-Sebastian"]
[Result "1-0"]
[ECO "B09"]
[WhiteElo "2302"]
[BlackElo "2248"]
[Annotator "ChessBase"]
[PlyCount "65"]
[EventDate "2020.09.25"]
[EventType "swiss"]
[EventCountry "ROU"]
[SourceTitle "playchess.com"]
[Source "ChessBase"]
[SourceQuality "1"]
[TimeControl "5400+30"]

1. d4 {[%emt 0:00:00]} d6 {[%emt 0:00:13]} 2. e4 {[%emt 0:00:45]} g6 {[%emt 0:00:46]} 3. Nc3 {[%emt 0:01:07]} Bg7 {[%emt 0:02:01]} 4. f4 {[%emt 0:01:06]} Nf6 {[%emt 0:02:00]} 5. Nf3 {[%emt 0:00:21]} O-O {[%emt 0:00:15]} 6. Bd3 {[%emt 0:00:14]} c5 {[%emt 0:04:01]} 7. dxc5 {[%emt 0:01:20]} dxc5 {[%emt 0:01:58]} 8. e5 {[%emt 0:00:08]} Nd5 {[%emt 0:01:03]} 9. Nxd5 {[%emt 0:00:05]} Qxd5 {[%emt 0:00:05]} 10. Qe2 {[%emt 0:00:04]} Nc6 {[%emt 0:02:52]} 11. Be4 {[%emt 0:00:13]} Qd8 {[%emt 0:06:27]} 12. Be3 {[%emt 0:00:44]} Nd4 {[%emt 0:05:00]} 13. Bxd4 {[%emt 0:33:13]} cxd4 {[%emt 0:00:10]} 14. O-O-O {[%emt 0:00:09]} Bg4 {[%emt 0:08:50]} 15. h3 {[%emt 0:04:53]} Bxf3 {[%emt 0:04:15]} 16. Qxf3 {[%emt 0:00:01]} Rb8 {[%emt 0:03:39]} 17. h4 {[%emt 0:00:38]} f6 {[%emt 0:16:42]} 18. h5 {[%emt 0:11:31]} fxe5 {[%emt 0:03:21]} 19. hxg6 {[%emt 0:00:15]} h6 {[%emt 0:00:19]} 20. f5 {[%emt 0:11:44]} e6 {[%emt 0:02:20]} 21. g4 {[%emt 0:00:10]} Qg5+ {[%emt 0:05:09]} 22. Kb1 {[%emt 0:00:06]} exf5 {[%emt 0:02:52]} 23. gxf5 {[%emt 0:00:43]} Qf4 {[%emt 0:00:49]} 24. Qe2 {[%emt 0:05:39]} b5 {[%emt 0:01:11]} 25. Rdf1 {[%emt 0:01:16]} Qg5 {[%emt 0:01:21]} 26. Rh5 {[%emt 0:00:57]} Qg3 {[%emt 0:06:24]} 27. Bd5+ {[%emt 0:03:39]} Kh8 {[%emt 0:00:05]} 28. f6 {[%emt 0:00:06]} Rxf6 {[%emt 0:02:45]} 29. Rxf6 {[%emt 0:00:13]} Bxf6 {[%emt 0:00:06]} 30. Rxh6+ {[%emt 0:00:07]} Kg7 {[%emt 0:00:12]} 31. Rh7+ {[%emt 0:00:02]} Kf8 {[%emt 0:01:00]} 32. Rf7+ {[%emt 0:00:04]} Ke8 {[%emt 0:00:12]} 33. Rxf6 {[%emt 0:00:05]} 1-0